fUSD/lending_fUSD_20241117
["ID","MTS","AMOUNT","RATE_DAILY","PERIOD"]
[342443845,1731885032054,-5565.66605938,0.0001,2]
[342443846,1731885032064,-250.0,0.0001,2]
[342443847,1731885032074,-394.85385958,0.0001,2]
[342443848,1731885032083,-800.0,0.0001,3]
[342443849,1731885032093,-23667.0,0.00010097,2]
[342443850,1731885032103,-1200.0,0.000101,3]
[342443851,1731885032111,-5926.0,0.00010122,2]
[342443852,1731885032121,-150.0,0.00010122,2]
[342443853,1731885032131,-12745.304,0.00010122,2]
[342443854,1731885032140,-662.83,0.00010128,2]
[342443855,1731885032155,-248.7,0.000102,2]
[342443856,1731885032166,-151.196,0.000102,2]
[342443857,1731885032175,-203.405,0.000102,2]
[342443858,1731885032184,-206.446,0.000102,2]
[342443859,1731885032194,-1600.0,0.000102,3]
[342443860,1731885032204,-3000.0,0.00010208,2]
[342443861,1731885032213,-3000.0,0.00010214,2]
[342443862,1731885032223,-1224.89,0.00010229,2]
[342443863,1731885032233,-3000.0,0.00010231,2]
[342443864,1731885032242,-3000.0,0.00010262,2]
[342443865,1731885032252,-3000.0,0.00010263,2]
[342443866,1731885032262,-500.0,0.00010273,2]
[342443867,1731885032271,-153.208,0.000103,2]
[342443868,1731885032280,-563.0,0.000103,2]
[342443869,1731885032290,-1254.0,0.000103,2]
[342443870,1731885032299,-150.0,0.000103,2]
[342443871,1731885032309,-1993.0,0.000103,2]
[342443872,1731885032319,-628.0,0.000103,2]
[342443873,1731885032328,-560.0,0.000103,2]
[342443874,1731885032338,-1925.0,0.000103,2]
[342443875,1731885032348,-3746.0,0.000103,2]
[342443876,1731885032358,-1260.0,0.000103,2]
[342443877,1731885032368,-814.0,0.000103,2]
[342443878,1731885032378,-3491.0,0.000103,2]
[342443880,1731885032388,-921.0,0.000103,2]
[342443881,1731885032400,-2000.0,0.000103,3]
[342443882,1731885032409,-1844.68,0.00010397,2]
[342443883,1731885032418,-175.652,0.00010397,2]
[342443884,1731885032428,-400.0,0.000104,3]
[342443885,1731885032438,-1877.64,0.00010454,2]
[342443886,1731885032447,-400.0,0.000105,3]
[342443887,1731885032457,-500.0,0.00010547,2]
[342443888,1731885032466,-363.0,0.000106,2]
[342443889,1731885032476,-400.0,0.000106,3]
[342443890,1731885032485,-1000.0,0.000106,2]
[342443891,1731885032494,-229.0,0.000106,2]
[342443892,1731885032503,-400.0,0.000107,3]
[342443893,1731885032513,-420.0,0.00010779,2]
[342443894,1731885032522,-447.0,0.000108,3]
[342443895,1731885032532,-7526.72,0.00010812,2]
[342443896,1731885032541,-500.0,0.00010821,2]
[342443897,1731885032551,-156.08407212,0.00010899,2]
[342443898,1731885032560,-156.08407212,0.00010899,2]
[342443899,1731885032570,-156.08407212,0.000109,2]
[342443900,1731885032579,-156.08407212,0.000109,2]
[342443901,1731885032589,-1000.0,0.000109,2]
[342443902,1731885032598,-1000.0,0.0001091,2]
[342443903,1731885032607,-152.0,0.00010928,3]
[342443904,1731885032617,-200.0,0.00010959,2]
[342443905,1731885032627,-1160.85,0.00010959,2]
[342443906,1731885032636,-150.0,0.00010959,2]
[342443907,1731885032648,-150.0,0.00010959,2]
[342443908,1731885032657,-500.0,0.0001096,2]
[342443909,1731885032667,-500.0,0.0001096,2]
[342443910,1731885032677,-500.0,0.0001096,2]
[342443911,1731885032686,-7571.23,0.00010985,2]
[342443912,1731885032696,-1000.0,0.00010999,2]
[342443913,1731885032707,-2421.75,0.00010999,2]
[342443914,1731885032718,-205.17880349,0.00010999,2]
[342443915,1731885032727,-518.91682298,0.00010999,2]
[342443916,1731885032737,-370.53018955,0.00010999,2]
[342443917,1731885032747,-284416.53385803,0.00011,2]
[342443918,1731885032759,-495.66582482,0.00011,2]
[342443919,1731885032782,-86612.79385639,0.00011,2]
[342443920,1731885032794,-31932.2133,0.00011,2]
[342443921,1731885033157,-224.3792773,0.00011,2]
[342443922,1731885033182,-2111.93650352,0.00011,2]
[342443923,1731885033195,-33927.62949469,0.00011,2]
[342443924,1731885033207,-13439.27129802,0.00011,2]
[342443933,1731885037892,-352.9,9.963e-05,2]
[342443934,1731885037905,-583.84,0.00010122,2]
[342443935,1731885037915,-1116.26373559,0.0001078,2]
[342443936,1731885037925,-67689.80087342,0.00011,2]
[342443937,1731885037960,-65773.25997477,0.00011,2]
[342443938,1731885037972,-473.24332212,0.00011,2]
[342443939,1731885038029,-261.74945403,0.00011,2]
[342443940,1731885038041,-8671.8456341,0.00011,2]
[342443941,1731885038052,-447853.69531755,0.00011,2]
[342443942,1731885038241,-5365105.27521987,0.00011,2]
[342443943,1731885038253,-1461.68745056,0.00011,2]
[342443944,1731885038264,-41815.34200133,0.00011,2]
[342443945,1731885038275,-645.01016873,0.00011,2]
[342443950,1731885039129,-896.67,0.00011,2]
[342443951,1731885039795,-1066.60676553,0.00011,2]
[342443952,1731885039978,-40535.44543927,0.00011,2]
[342443953,1731885039990,-10771.37433073,0.00011,2]
[342443954,1731885040001,-9856.262058,0.00011,2]
[342443955,1731885040012,-3934.98273757,0.00011,2]
[342443956,1731885040023,-280.29890735,0.00011,2]
[342443957,1731885040059,-389.78861273,0.00011,2]
[342443964,1731885042787,-7649.88088737,0.00011,2]
[342443965,1731885042979,-8939.50928495,0.00011,2]
[342443966,1731885043034,-3109.89999999,0.00011,2]
[342443967,1731885043045,-872.2299623,0.00011,2]
[342443968,1731885043057,-9160.61167316,0.00011,2]
[342443969,1731885043068,-560.54681174,0.00011,2]
[342443973,1731885045956,-2543.39937596,0.00011,2]
[342443974,1731885046025,-320.95454904,0.00011,2]
[342443975,1731885046037,-338.71176127,0.00011,2]
[342443976,1731885046048,-439.11648971,0.00011,2]
[342443977,1731885046088,-82017.89999999,0.00011,2]
[342443982,1731885058125,151.1,0.00012,15]
[342443983,1731885089398,-2434.320799,0.00025,60]
[342443984,1731885089464,-2434.320799,0.00025,60]
[342443985,1731885089527,-309.186132,0.00025,60]
[342443986,1731885089595,-2434.320799,0.00025,60]
[342443987,1731885089859,-309.186132,0.00025,60]
[342443988,1731885089941,-2434.320799,0.00025,60]
[342443989,1731885090004,-309.186132,0.00025,60]
[342443990,1731885090063,-2434.320799,0.00025,60]
[342443991,1731885090124,-309.186132,0.00025,60]
[342443992,1731885090188,-2434.320799,0.00025,60]
[342443993,1731885090244,-309.186132,0.00025,60]
[342443994,1731885090308,-2434.320799,0.00025,60]
[342443995,1731885090367,-309.186132,0.00025,60]
[342443996,1731885090429,-2434.320799,0.00025,60]
[342443997,1731885090492,-2434.320799,0.00025,60]
[342443998,1731885090549,-309.186132,0.00025,60]
[342443999,1731885090605,-309.186132,0.00025,60]
[342444000,1731885090666,-309.186132,0.00025,60]
[342444001,1731885090730,-579.461111,0.00025,60]
[342444002,1731885090785,-579.461111,0.00025,60]
[342444003,1731885090846,-579.461111,0.00025,60]
[342444004,1731885090903,-579.461111,0.00025,60]
[342444005,1731885090958,-579.461111,0.00025,60]
[342444006,1731885091018,-579.461111,0.00025,60]
[342444007,1731885091074,-579.461111,0.00025,60]
[342444008,1731885091131,-579.461111,0.00025,60]
[342444009,1731885091192,-579.461111,0.00025,60]
[342444010,1731885091253,-3015.583357,0.00025,60]
[342444011,1731885091315,-3015.583357,0.00025,60]
[342444012,1731885091377,-3015.583357,0.00025,60]
[342444013,1731885091439,-3015.583357,0.00025,60]
[342444014,1731885091501,-3015.583357,0.00025,60]
[342444015,1731885091564,-3015.583357,0.00025,60]
[342444016,1731885091624,-3015.583357,0.00025,60]
[342444017,1731885091688,-3015.583357,0.00025,60]
[342444018,1731885091752,-3015.583357,0.00025,60]
[342444019,1731885091813,-222.06488386,0.00025,60]
[342444020,1731885091875,-501.20296334,0.00025,60]
[342444021,1731885091938,-500.0,0.00025,60]
[342444022,1731885091995,-500.0,0.00025,60]
[342444023,1731885092058,-500.0,0.00025,60]
[342444024,1731885092120,-500.0,0.00025,60]
[342444025,1731885092185,-500.0,0.00025,60]
[342444026,1731885092250,-500.0,0.00025,60]
[342444027,1731885092314,-500.0,0.00025,60]
[342444028,1731885092377,-500.0,0.00025,60]
[342444029,1731885092442,-500.0,0.00025,60]
[342444030,1731885092508,-500.0,0.00025,60]
[342444031,1731885092572,-498.58298625,0.00025,60]
[342444032,1731885092636,-500.0,0.00025,60]
[342444033,1731885092700,-544.94231517,0.00025,60]
[342444034,1731885092768,-500.0,0.00025,60]
[342444035,1731885092827,-500.0,0.00025,60]
[342444036,1731885092889,-500.0,0.00025,60]
[342444037,1731885092947,-500.0,0.00025,60]
[342444038,1731885093004,-500.0,0.00025,60]
[342444039,1731885093065,-500.0,0.00025,60]
[342444040,1731885093119,-498.59264064,0.00025,60]
[342444041,1731885093180,-539.75831448,0.00025,60]
[342444042,1731885093237,-500.0,0.00025,60]
[342444043,1731885093300,-500.0,0.00025,60]
[342444044,1731885093366,-234.68114733,0.00025,60]
[342444045,1731885093435,-500.0,0.00025,60]
[342444046,1731885093505,-500.0,0.00025,60]
[342444047,1731885093574,-500.0,0.00025,60]
[342444048,1731885093641,-500.0,0.00025,60]
[342444049,1731885093714,-500.0,0.00025,60]
[342444050,1731885093790,-569.45934874,0.00025,60]
[342444051,1731885093857,-500.0,0.00025,60]
[342444052,1731885093936,-500.0,0.00025,60]
[342444053,1731885094011,-500.0,0.00025,60]
[342444054,1731885094082,-500.0,0.00025,60]
[342444055,1731885094157,-209.35138811,0.00025,60]
[342444056,1731885094233,-500.0,0.00025,60]
[342444057,1731885094310,-500.0,0.00025,60]
[342444058,1731885094382,-500.0,0.00025,60]
[342444059,1731885094457,-500.0,0.00025,60]
[342444060,1731885094531,-500.0,0.00025,60]
[342444061,1731885094601,-500.0,0.00025,60]
[342444062,1731885094668,-500.0,0.00025,60]
[342444063,1731885094739,-500.0,0.00025,60]
[342444064,1731885094805,-472.27507408,0.00025,60]
[342444065,1731885094870,-500.0,0.00025,60]
[342444066,1731885094938,-221.99238525,0.00025,60]
[342444067,1731885095000,-500.0,0.00025,60]
[342444068,1731885095064,-181.61264537,0.00025,60]
[342444069,1731885095132,-178.98496331,0.00025,60]
[342444070,1731885095201,-500.0,0.00025,60]
[342444071,1731885095271,-500.0,0.00025,60]
[342444072,1731885095342,-500.0,0.00025,60]
[342444073,1731885095406,-500.0,0.00025,60]
[342444074,1731885095470,-500.0,0.00025,60]
[342444075,1731885095538,-500.0,0.00025,60]
[342444076,1731885095602,-500.0,0.00025,60]
[342444077,1731885095666,-500.0,0.00025,60]
[342444078,1731885095732,-500.0,0.00025,60]
[342444079,1731885095795,-500.0,0.00025,60]
[342444080,1731885095856,-500.0,0.00025,60]
[342444081,1731885095913,-500.0,0.00025,60]
[342444082,1731885095973,-500.0,0.00025,60]
[342444083,1731885096027,-500.0,0.00025,60]
[342444084,1731885096086,-500.0,0.00025,60]
[342444085,1731885096401,-500.0,0.00025,60]
[342444086,1731885096465,-500.0,0.00025,60]
[342444087,1731885096521,-500.0,0.00025,60]
[342444088,1731885096579,-563.92347198,0.00025,60]
[342444089,1731885096638,-500.0,0.00025,60]
[342444090,1731885096695,-500.0,0.00025,60]
[342444091,1731885096757,-500.0,0.00025,60]
[342444092,1731885096816,-500.0,0.00025,60]
[342444093,1731885096876,-500.0,0.00025,60]
[342444094,1731885096940,-500.0,0.00025,60]
[342444095,1731885096998,-500.0,0.00025,60]
[342444096,1731885097061,-495.69586168,0.00025,60]
[342444097,1731885097120,-500.0,0.00025,60]
[342444098,1731885097184,-500.0,0.00025,60]
[342444099,1731885097251,-500.50781979,0.00025,60]
[342444100,1731885097315,-500.0,0.00025,60]
[342444101,1731885097384,-306.37474789,0.00025,60]
[342444102,1731885097452,-500.0,0.00025,60]
[342444103,1731885097519,-500.0,0.00025,60]
[342444104,1731885097587,-500.0,0.00025,60]
[342444105,1731885097650,-500.0,0.00025,60]
[342444106,1731885097723,-500.90633943,0.00025,60]
[342444107,1731885097790,-500.0,0.00025,60]
[342444108,1731885097852,-500.0,0.00025,60]
[342444109,1731885097917,-500.0,0.00025,60]
[342444110,1731885097977,-500.0,0.00025,60]
[342444111,1731885098036,-501.59459508,0.00025,60]
[342444112,1731885098103,-500.0,0.00025,60]
[342444113,1731885098170,-500.0,0.00025,60]
[342444114,1731885098244,-500.0,0.00025,60]
[342444115,1731885098313,-500.0,0.00025,60]
[342444116,1731885098382,-501.0738439,0.00025,60]
[342444117,1731885098457,-500.0,0.00025,60]
[342444118,1731885098526,-500.0,0.00025,60]
[342444119,1731885098592,-500.0,0.00025,60]
[342444120,1731885098660,-500.0,0.00025,60]
[342444121,1731885098727,-500.0,0.00025,60]
[342444122,1731885098799,-500.0,0.00025,60]
[342444123,1731885098872,-500.0,0.00025,60]
[342444124,1731885098938,-500.0,0.00025,60]
[342444125,1731885099007,-500.0,0.00025,60]
[342444126,1731885099073,-500.0,0.00025,60]
[342444127,1731885099139,-500.0,0.00025,60]
[342444128,1731885099213,-500.0,0.00025,60]
[342444129,1731885099285,-500.0,0.00025,60]
[342444130,1731885099354,-500.0,0.00025,60]
[342444131,1731885099428,-233.54202328,0.00025,60]
[342444132,1731885099504,-500.0,0.00025,60]
[342444133,1731885099574,-452.95268722,0.00025,60]
[342444134,1731885099647,-500.0,0.00025,60]
[342444135,1731885099712,-500.0,0.00025,60]
[342444136,1731885099779,-479.40024861,0.00025,60]
[342444137,1731885099847,-500.0,0.00025,60]
[342444138,1731885099913,-500.0,0.00025,60]
[342444139,1731885099983,-500.0,0.00025,60]
[342444140,1731885100046,-500.0,0.00025,60]
[342444141,1731885100107,-500.0,0.00025,60]
[342444142,1731885100176,-500.0,0.00025,60]
[342444143,1731885100246,-500.0,0.00025,60]
[342444144,1731885100306,-580.73320919,0.00025,60]
[342444145,1731885100368,-500.0,0.00025,60]
[342444146,1731885100431,-500.0,0.00025,60]
[342444147,1731885100494,-500.0,0.00025,60]
[342444148,1731885100552,-500.0,0.00025,60]
[342444149,1731885100615,-500.0,0.00025,60]
[342444150,1731885100672,-500.0,0.00025,60]
[342444151,1731885100734,-500.0,0.00025,60]
[342444152,1731885100795,-500.0,0.00025,60]
[342444153,1731885100852,-500.0,0.00025,60]
[342444154,1731885100909,-500.0,0.00025,60]
[342444155,1731885100972,-500.0,0.00025,60]
[342444156,1731885101027,-500.0,0.00025,60]
[342444157,1731885101082,-500.0,0.00025,60]
[342444158,1731885101141,-500.0,0.00025,60]
[342444159,1731885101198,-184.09149275,0.00025,60]
[342444160,1731885101257,-500.0,0.00025,60]
[342444161,1731885101319,-505.68848452,0.00025,60]
[342444162,1731885101377,-500.0,0.00025,60]
[342444163,1731885101439,-500.0,0.00025,60]
[342444164,1731885101502,-471.63659844,0.00025,60]
[342444165,1731885101562,-500.0,0.00025,60]
[342444166,1731885101620,-500.0,0.00025,60]
[342444167,1731885101685,-500.0,0.00025,60]
[342444168,1731885101749,-500.65806928,0.00025,60]
[342444169,1731885101810,-500.0,0.00025,60]
[342444170,1731885101871,-500.0,0.00025,60]
[342444171,1731885101937,-500.0,0.00025,60]
[342444172,1731885102000,-500.0,0.00025,60]
[342444173,1731885102060,-500.0,0.00025,60]
[342444174,1731885102124,-500.0,0.00025,60]
[342444175,1731885102192,-500.0,0.00025,60]
[342444176,1731885102256,-500.0,0.00025,60]
[342444177,1731885102321,-500.0,0.00025,60]
[342444178,1731885102385,-500.0,0.00025,60]
[342444179,1731885102445,-500.0,0.00025,60]
[342444180,1731885102506,-171.92501419,0.00025,60]
[342444181,1731885102565,-500.0,0.00025,60]
[342444182,1731885102621,-500.0,0.00025,60]
[342444183,1731885102679,-500.0,0.00025,60]
[342444184,1731885102740,-500.0,0.00025,60]
[342444185,1731885102794,-500.0,0.00025,60]
[342444186,1731885102856,-345.97877456,0.00025,60]
[342444187,1731885102916,-500.0,0.00025,60]
[342444188,1731885102975,-500.0,0.00025,60]
[342444189,1731885103249,-571.08683237,0.00025,60]
[342444190,1731885103312,-500.0,0.00025,60]
[342444191,1731885103369,-500.0,0.00025,60]
[342444192,1731885103426,-500.0,0.00025,60]
[342444193,1731885103497,-500.0,0.00025,60]
[342444194,1731885103557,-500.76512625,0.00025,60]
[342444195,1731885103622,-500.0,0.00025,60]
[342444196,1731885103681,-500.0,0.00025,60]
[342444197,1731885103746,-242.4463068,0.00025,60]
[342444198,1731885103807,-500.0,0.00025,60]
[342444199,1731885103870,-500.0,0.00025,60]
[342444200,1731885103929,-500.0,0.00025,60]
[342444201,1731885103996,-500.0,0.00025,60]
[342444202,1731885104050,-501.39597992,0.00025,60]
[342444203,1731885104113,-500.0,0.00025,60]
[342444204,1731885104173,-542.17483575,0.00025,60]
[342444205,1731885104234,-1069.8,0.00025,60]
[342444206,1731885104299,-1069.8,0.00025,60]
[342444207,1731885104365,-1069.8,0.00025,60]
[342444208,1731885104436,-1069.8,0.00025,60]
[342444209,1731885104506,-1069.8,0.00025,60]
[342444210,1731885104573,-1069.8,0.00025,60]
[342444211,1731885104641,-500.0,0.00025,60]
[342444212,1731885104708,-500.0,0.00025,60]
[342444213,1731885104774,-1069.8,0.00025,60]
[342444214,1731885104841,-1069.8,0.00025,60]
[342444215,1731885104913,-500.0,0.00025,60]
[342444216,1731885104982,-500.0,0.00025,60]
[342444217,1731885105053,-1069.8,0.00025,60]
[342444218,1731885105121,-500.81534961,0.00025,60]
[342444219,1731885105191,-1069.8,0.00025,60]
[342444220,1731885105262,-1069.8,0.00025,60]
[342444221,1731885105332,-1069.8,0.00025,60]
[342444222,1731885105394,-1069.8,0.00025,60]
[342444223,1731885105460,-1069.8,0.00025,60]
[342444224,1731885105527,-1069.8,0.00025,60]
[342444225,1731885105588,-1069.8,0.00025,60]
[342444226,1731885105647,-1069.8,0.00025,60]
[342444227,1731885105707,-1069.8,0.00025,60]
[342444228,1731885105764,-1069.8,0.00025,60]
[342444229,1731885105826,-1069.8,0.00025,60]
[342444230,1731885105884,-1069.8,0.00025,60]
[342444231,1731885105945,-1069.8,0.00025,60]
[342444232,1731885106008,-1069.8,0.00025,60]
[342444233,1731885106065,-500.0,0.00025,60]
[342444234,1731885106128,-1069.9731085,0.00025,60]
[342444235,1731885106196,-500.0,0.00025,60]
[342444236,1731885106259,-500.0,0.00025,60]
[342444237,1731885106325,-500.0,0.00025,60]
[342444238,1731885106390,-500.0,0.00025,60]
[342444239,1731885106453,-500.0,0.00025,60]
[342444240,1731885106519,-500.0,0.00025,60]
[342444241,1731885106580,-500.0,0.00025,60]
[342444242,1731885106646,-527.73330616,0.00025,60]
[342444243,1731885106718,-500.0,0.00025,60]
[342444244,1731885106788,-500.0,0.00025,60]
[342444245,1731885106852,-500.0,0.00025,60]
[342444246,1731885106923,-500.0,0.00025,60]
[342444247,1731885106995,-397.72528666,0.00025,60]
[342444248,1731885107056,-505.39707143,0.00025,60]
[342444249,1731885107121,-210.51766763,0.00025,60]
[342444250,1731885107181,-500.0,0.00025,60]
[342444251,1731885107246,-500.0,0.00025,60]
[342444252,1731885107308,-500.0,0.00025,60]
[342444253,1731885107369,-500.0,0.00025,60]
[342444254,1731885107435,-500.0,0.00025,60]
[342444255,1731885107506,-500.0,0.00025,60]
[342444256,1731885107566,-500.0,0.00025,60]
[342444257,1731885107633,-500.0,0.00025,60]
[342444258,1731885107695,-500.0,0.00025,60]
[342444259,1731885107757,-500.0,0.00025,60]
[342444260,1731885107823,-500.0,0.00025,60]
[342444261,1731885107883,-500.0,0.00025,60]
[342444262,1731885107946,-500.0,0.00025,60]
[342444263,1731885108005,-500.0,0.00025,60]
[342444264,1731885108065,-500.0,0.00025,60]
[342444265,1731885108127,-500.0,0.00025,60]
[342444266,1731885108187,-500.0,0.00025,60]
[342444267,1731885108252,-607.51653358,0.00025,60]
[342444268,1731885108318,-500.0,0.00025,60]
[342444269,1731885108383,-500.0,0.00025,60]
[342444270,1731885108455,-500.0,0.00025,60]
[342444271,1731885108520,-500.0,0.00025,60]
[342444272,1731885108581,-500.0,0.00025,60]
[342444273,1731885108644,-500.0,0.00025,60]
[342444274,1731885108705,-345.22,0.00025,60]
[342444275,1731885108770,-500.0,0.00025,60]
[342444276,1731885108833,-500.0,0.00025,60]
[342444277,1731885108890,-500.0,0.00025,60]
[342444278,1731885108956,-500.0,0.00025,60]
[342444279,1731885109019,-500.0,0.00025,60]
[342444280,1731885109080,-500.0,0.00025,60]
[342444281,1731885109146,-500.0,0.00025,60]
[342444282,1731885109214,-500.91053975,0.00025,60]
[342444283,1731885109280,-539.73892701,0.00025,60]
[342444284,1731885109349,-500.0,0.00025,60]
[342444285,1731885109426,-500.0,0.00025,60]
[342444286,1731885109504,-500.0,0.00025,60]
[342444287,1731885109574,-200.27036038,0.00025,60]
[342444288,1731885109640,-500.0,0.00025,60]
[342444289,1731885109709,-500.0,0.00025,60]
[342444290,1731885109776,-500.0,0.00025,60]
[342444291,1731885109843,-500.0,0.00025,60]
[342444292,1731885109904,-500.0,0.00025,60]
[342444293,1731885110169,-500.0,0.00025,60]
[342444294,1731885110238,-500.0,0.00025,60]
[342444295,1731885110299,-500.0,0.00025,60]
[342444296,1731885110362,-500.0,0.00025,60]
[342444297,1731885110425,-500.0,0.00025,60]
[342444298,1731885110493,-500.0,0.00025,60]
[342444299,1731885110551,-500.0,0.00025,60]
[342444300,1731885110614,-593.61561213,0.00025,60]
[342444301,1731885110672,-500.0,0.00025,60]
[342444302,1731885110734,-500.0,0.00025,60]
[342444303,1731885110796,-500.0,0.00025,60]
[342444304,1731885110855,-500.0,0.00025,60]
[342444305,1731885110913,-500.0,0.00025,60]
[342444306,1731885110974,-500.0,0.00025,60]
[342444307,1731885111031,-500.0,0.00025,60]
[342444308,1731885111086,-500.0,0.00025,60]
[342444309,1731885111147,-500.0,0.00025,60]
[342444310,1731885111205,-500.0,0.00025,60]
[342444311,1731885111261,-500.0,0.00025,60]
[342444312,1731885111322,-432.002961,0.00025,60]
[342444313,1731885111378,-500.0,0.00025,60]
[342444314,1731885111434,-500.0,0.00025,60]
[342444315,1731885111498,-500.0,0.00025,60]
[342444316,1731885111555,-500.0,0.00025,60]
[342444317,1731885111620,-500.0,0.00025,60]
[342444318,1731885111678,-500.0,0.00025,60]
[342444319,1731885111747,-500.0,0.00025,60]
[342444320,1731885111807,-336.34586822,0.00025,60]
[342444321,1731885111866,-500.0,0.00025,60]
[342444322,1731885111929,-310.44184438,0.00025,60]
[342444323,1731885111988,-500.0,0.00025,60]
[342444324,1731885112048,-500.0,0.00025,60]
[342444325,1731885112105,-500.0,0.00025,60]
[342444326,1731885112160,-500.0,0.00025,60]
[342444327,1731885112224,-500.0,0.00025,60]
[342444328,1731885112285,-500.0,0.00025,60]
[342444329,1731885112345,-500.0,0.00025,60]
[342444330,1731885112409,-500.0,0.00025,60]
[342444331,1731885112468,-500.0,0.00025,60]
[342444332,1731885112526,-500.0,0.00025,60]
[342444333,1731885112587,-500.0,0.00025,60]
[342444334,1731885112645,-500.0,0.00025,60]
[342444335,1731885112707,-458.01583515,0.00025,60]
[342444336,1731885112768,-500.0,0.00025,60]
[342444337,1731885112829,-500.0,0.00025,60]
[342444338,1731885112892,-500.0,0.00025,60]
[342444339,1731885112951,-500.0,0.00025,60]
[342444340,1731885113006,-500.0,0.00025,60]
[342444341,1731885113068,-500.0,0.00025,60]
[342444342,1731885113122,-500.0,0.00025,60]
[342444343,1731885113180,-500.0,0.00025,60]
[342444344,1731885113244,-500.0,0.00025,60]
[342444345,1731885113299,-500.0,0.00025,60]
[342444346,1731885113357,-500.0,0.00025,60]
[342444347,1731885113415,-500.0,0.00025,60]
[342444348,1731885113471,-500.0,0.00025,60]
[342444349,1731885113528,-500.0,0.00025,60]
[342444350,1731885113584,-500.0,0.00025,60]
[342444351,1731885113644,-500.0,0.00025,60]
[342444352,1731885113703,-500.0,0.00025,60]
[342444353,1731885113765,-500.0,0.00025,60]
[342444354,1731885113823,-422.62931679,0.00025,60]
[342444355,1731885113887,-500.0,0.00025,60]
[342444356,1731885113950,-500.0,0.00025,60]
[342444357,1731885114014,-500.0,0.00025,60]
[342444358,1731885114075,-500.0,0.00025,60]
[342444359,1731885114136,-500.0,0.00025,60]
[342444360,1731885114207,-500.0,0.00025,60]
[342444361,1731885114271,-500.0,0.00025,60]
[342444362,1731885114346,-500.0,0.00025,60]
[342444363,1731885114419,-500.0,0.00025,60]
[342444364,1731885114490,-500.0,0.00025,60]
[342444365,1731885114558,-500.0,0.00025,60]
[342444366,1731885114629,-500.0,0.00025,60]
[342444367,1731885114699,-500.0,0.00025,60]
[342444368,1731885114764,-390.11596494,0.00025,60]
[342444369,1731885114830,-500.0,0.00025,60]
[342444370,1731885114899,-500.0,0.00025,60]